bitfinex-derivatives/quotes_BTCF0:USTF0_20250930
["timestamp","ask_amount","ask_price","bid_price","bid_amount"]
[1759231844466,0.87740183,113000.0,112990.0,0.1171701]
[1759231845668,0.87740183,113000.0,112990.0,0.1281701]
[1759231846567,1.68740183,113000.0,112990.0,0.1281701]
[1759231846762,0.87740183,113000.0,112990.0,0.4889701]
[1759231846965,1.66732966,113000.0,112990.0,0.5016301]
[1759231847262,0.12723069,113000.0,112990.0,0.83164907]
[1759231847467,0.92457069,113000.0,112990.0,0.87936536]
[1759231848068,0.93727069,113000.0,112990.0,0.87936536]
[1759231849066,0.95762482,113000.0,112990.0,0.83164907]
[1759231849668,0.94492482,113000.0,112990.0,0.83164907]
[1759231850468,0.92396556,113000.0,112990.0,0.84929423]
[1759231850670,0.11392556,113000.0,112990.0,0.84929423]
[1759231852265,0.09077556,113000.0,112990.0,0.84929423]
[1759231852470,0.07042143,113000.0,112990.0,1.29701052]
[1759231852772,0.36484897,113030.0,113020.0,0.1114866]
[1759231853072,0.55330869,113030.0,113020.0,0.1114866]
[1759231853465,0.56228821,113030.0,113020.0,0.1114866]
[1759231853666,0.65071671,113030.0,113020.0,0.1114866]
[1759231854170,0.65071671,113030.0,113020.0,0.1124866]
[1759231854372,0.65871671,113030.0,113020.0,0.1124866]
[1759231854561,0.57028821,113030.0,113020.0,0.1124866]
[1759231855072,0.64233201,113030.0,113020.0,0.1124866]
[1759231855667,0.31231304,113030.0,113020.0,0.1124866]
[1759231855871,0.64233201,113030.0,113020.0,0.1124866]
[1759231856073,0.63433201,113030.0,113020.0,0.1114866]
[1759231856374,0.64033201,113030.0,113020.0,0.1164866]
[1759231857073,0.71031304,113030.0,113020.0,0.44650557]
[1759231857274,0.71031304,113030.0,113020.0,0.1164866]
[1759231857773,1.04033201,113030.0,113020.0,0.1164866]
[1759231860270,1.68445201,113030.0,113020.0,0.1164866]
[1759231860673,1.68437201,113030.0,113020.0,0.1164866]
[1759231860868,1.68437201,113030.0,113020.0,0.4772866]
[1759231861171,0.54223304,113030.0,113020.0,0.4899466]
[1759231861477,0.12843304,113030.0,113020.0,0.81996557]
[1759231862171,0.12843304,113030.0,113020.0,0.4899466]
[1759231862374,0.12843304,113030.0,113020.0,0.81996557]
[1759231862573,0.12843304,113030.0,113020.0,0.4899466]
[1759231862777,0.12843304,113030.0,113020.0,0.81996557]
[1759231864378,0.10740304,113030.0,113020.0,0.81996557]
[1759231864584,0.12843304,113030.0,113020.0,0.81996557]
[1759231865379,0.11945352,113030.0,113020.0,1.21996557]
[1759231865774,0.0990738,113030.0,113020.0,1.21996557]
[1759231866078,0.11941051,113030.0,113020.0,1.21996557]
[1759231868882,0.0990738,113030.0,113020.0,1.21996557]
[1759231869774,0.0990738,113030.0,113020.0,2.03124557]
[1759231870377,0.0990738,113030.0,113020.0,1.21996557]
[1759231870578,0.0990738,113030.0,113020.0,2.03124557]
[1759231870979,0.0780438,113030.0,113020.0,2.03124557]
[1759231871482,0.0780438,113030.0,113020.0,1.21996557]
[1759231871681,0.0780438,113030.0,113020.0,2.03096557]
[1759231872382,0.0780438,113030.0,113020.0,1.21996557]
[1759231872584,0.0780438,113030.0,113020.0,2.03096557]
[1759231872778,0.006,113030.0,113020.0,2.03088557]
[1759231872978,0.006,113030.0,113020.0,2.07852276]
[1759231873579,0.006,113030.0,113020.0,1.26764276]
[1759231873873,0.006,113030.0,113020.0,2.07840276]
[1759231875688,0.006,113030.0,113020.0,1.26764276]
[1759231875884,0.006,113030.0,113020.0,2.07816276]
[1759231877089,0.006,113030.0,113020.0,1.26764276]
[1759231877289,0.006,113030.0,113020.0,2.07800276]
[1759231878990,0.006,113030.0,113020.0,1.26764276]
[1759231879187,0.006,113030.0,113020.0,2.07780276]
[1759231879696,0.006,113030.0,113020.0,1.26764276]
[1759231879885,0.006,113030.0,113020.0,2.07768276]
[1759231880283,0.006,113030.0,113020.0,1.71688276]
[1759231880486,0.006,113030.0,113020.0,2.43848276]
[1759231883092,0.07060162,113040.0,113030.0,0.1239892]
[1759231883289,0.36334959,113060.0,113030.0,0.1239892]
[1759231883290,0.38485959,113060.0,113050.0,0.1111235]
[1759231883584,0.07519448,113060.0,113050.0,0.1111235]
[1759231883789,0.07519448,113060.0,113050.0,0.44114247]
[1759231884092,0.07519448,113060.0,113050.0,0.1111235]
[1759231884390,0.14696458,113060.0,113050.0,0.1111235]
[1759231884579,0.16096458,113060.0,113050.0,0.44114247]
[1759231884782,0.17006535,113060.0,113050.0,0.45399247]
[1759231886286,0.15606535,113060.0,113050.0,0.45399247]
[1759231886486,0.16206535,113060.0,113050.0,0.45399247]
[1759231886688,0.14936535,113060.0,113050.0,0.45399247]
[1759231887985,0.14436535,113060.0,113050.0,0.45399247]
[1759231888180,0.15036535,113060.0,113050.0,0.45399247]
[1759231889294,0.15036535,113060.0,113050.0,0.81479247]
[1759231890192,0.12973473,113060.0,113050.0,0.81479247]
[1759231891293,0.10822473,113060.0,113050.0,0.81479247]
[1759231891494,0.0787701,113060.0,113050.0,0.81479247]
[1759231891690,0.0787701,113060.0,113050.0,1.62515247]
[1759231891894,0.0787701,113060.0,113050.0,1.62531247]
[1759231892291,0.1002801,113060.0,113050.0,0.4847735]
[1759231892590,0.007,113060.0,113050.0,2.02675247]
[1759231892988,0.007,113060.0,113050.0,2.07442966]
[1759231893184,0.0127,113080.0,113060.0,0.088404]
[1759231893384,0.06372599,113080.0,113070.0,0.45397687]
[1759231893586,0.06372599,113080.0,113070.0,0.1239579]
[1759231893992,0.13502382,113080.0,113070.0,0.1239579]
[1759231894187,0.06372599,113080.0,113070.0,0.1239579]
[1759231894392,0.07172599,113080.0,113070.0,0.1239579]
[1759231894887,0.07172599,113080.0,113070.0,0.45397687]
[1759231894888,0.05902599,113080.0,113070.0,0.45397687]
[1759231895093,0.40174496,113080.0,113070.0,0.1289663]
[1759231895489,0.40174496,113080.0,113070.0,0.1293663]
[1759231895795,0.07172599,113080.0,113070.0,0.1293663]
[1759231896188,0.07972599,113080.0,113070.0,0.1293663]
[1759231898200,0.47905064,113080.0,113070.0,0.4589274]
[1759231898999,0.13678954,113080.0,113070.0,0.4717774]
[1759231899391,0.46635064,113080.0,113070.0,0.8325774]
[1759231899592,0.47905064,113080.0,113070.0,0.8325774]
[1759231899799,0.47905064,113080.0,113070.0,0.8197274]
[1759231899998,0.47905064,113080.0,113070.0,0.4589274]
[1759231901993,0.47905064,113080.0,113070.0,0.1293663]
[1759231902191,0.47905064,113080.0,113070.0,0.4589274]
[1759231903895,0.56744084,113080.0,113070.0,0.4589274]
[1759231904497,0.47905064,113080.0,113070.0,0.4589274]
[1759231905698,1.25780204,113080.0,113070.0,0.1115079]
[1759231905899,1.67864416,113080.0,113070.0,0.1115079]
[1759231906098,1.67864416,113080.0,113070.0,0.1111079]
[1759231906398,1.67864416,113080.0,113070.0,0.0887979]
[1759231906598,1.67864416,113080.0,113070.0,0.10178054]
[1759231907506,1.67864416,113080.0,113070.0,0.10138054]
[1759231907904,1.67864416,113080.0,113070.0,0.10178054]
[1759231908203,2.00820526,113080.0,113070.0,0.0004]
[1759231908505,0.1238081,113070.0,113060.0,0.0884012]
[1759231908704,1.64671564,113070.0,113060.0,0.0892012]
[1759231908899,1.97627674,113070.0,113060.0,0.0892012]
[1759231909104,1.97627674,113070.0,113060.0,0.0884012]
[1759231909305,1.97627674,113070.0,113060.0,0.0888012]
[1759231909709,1.97627674,113070.0,113060.0,0.0898012]
[1759231910107,1.97627674,113070.0,113060.0,0.0888012]
[1759231910316,1.98427674,113070.0,113060.0,0.0888012]
[1759231910709,1.17207674,113070.0,113060.0,0.0888012]
[1759231911104,1.98431674,113070.0,113060.0,0.0888012]
[1759231911512,1.98427674,113070.0,113060.0,0.0888012]
[1759231912113,1.65463564,113070.0,113060.0,0.1099612]
[1759231912314,1.98419674,113070.0,113060.0,0.0004]
[1759231912520,0.1238159,113060.0,113050.0,0.4391295]
[1759231912718,0.80328454,113060.0,113050.0,0.4399295]
[1759231912917,1.28588344,113060.0,113050.0,0.4533695]
[1759231913618,1.28588344,113060.0,113050.0,0.4593695]
[1759231913815,1.29116344,113060.0,113050.0,0.4459295]
[1759231915223,0.47872344,113060.0,113050.0,0.4459295]
[1759231915419,1.29100344,113060.0,113050.0,0.4459295]
[1759231916218,1.29100344,113060.0,113050.0,0.8067295]
[1759231918028,0.47872344,113060.0,113050.0,0.8067295]
[1759231918320,0.04765644,113060.0,113050.0,1.1497306]
[1759231918521,0.04765644,113060.0,113050.0,0.8201695]
[1759231918727,0.04765644,113060.0,113050.0,1.1497306]
[1759231918919,0.02731,113060.0,113050.0,0.4906084]
[1759231919120,0.02731,113060.0,113050.0,0.8201695]
[1759231919320,0.02731,113060.0,113050.0,0.86784669]
[1759231920728,0.02731,113060.0,113050.0,0.53828559]
[1759231920929,0.04041,113060.0,113050.0,0.53828559]
[1759231921130,0.3699711,113060.0,113050.0,0.85440669]
[1759231923330,0.3699711,113060.0,113050.0,0.86784669]
[1759231926725,0.3699711,113060.0,113050.0,0.53828559]
[1759231927031,0.3699711,113060.0,113050.0,0.86784669]
[1759231927426,0.02731,113060.0,113050.0,0.86784669]
[1759231928026,0.02731,113060.0,113050.0,1.19740779]
[1759231928427,0.02731,113060.0,113050.0,0.86784669]
[1759231928626,0.02731,113060.0,113050.0,1.67912669]
[1759231928825,0.02731,113060.0,113050.0,1.67908669]
[1759231929233,0.04041,113060.0,113050.0,1.67908669]
[1759231929531,0.04041,113060.0,113050.0,0.85440669]
[1759231930029,0.3699711,113060.0,113050.0,0.49360669]
[1759231930334,0.3699711,113060.0,113050.0,0.16404559]
[1759231930532,0.3699711,113060.0,113050.0,0.49280669]
[1759231930733,0.3699711,113060.0,113050.0,0.49320669]
[1759231931435,0.04041,113060.0,113050.0,0.49320669]
[1759231931637,0.3699711,113060.0,113050.0,0.49320669]
[1759231931936,1.11988431,113060.0,113050.0,0.16364559]
[1759231932122,1.11988431,113060.0,113050.0,0.1155684]
[1759231932322,1.11988431,113060.0,113050.0,0.49320669]
[1759231932527,0.79032321,113060.0,113050.0,0.4455295]
[1759231932722,0.79032321,113060.0,113050.0,0.1159684]
[1759231933234,0.79032321,113060.0,113050.0,0.4455295]
[1759231933428,1.60280321,113060.0,113050.0,0.16364559]
[1759231933629,1.60280321,113060.0,113050.0,0.49320669]
[1759231934437,1.60280321,113060.0,113050.0,0.16364559]
[1759231934635,1.60280321,113060.0,113050.0,0.49320669]
[1759231934836,1.60276321,113060.0,113050.0,0.49320669]
[1759231935030,0.79032321,113060.0,113050.0,0.49320669]
[1759231935237,1.60252321,113060.0,113050.0,0.17651559]
[1759231935529,1.60252321,113060.0,113050.0,0.50607669]
[1759231935735,0.46076211,113060.0,113050.0,0.50607669]
[1759231935935,1.60252321,113060.0,113050.0,0.86687669]
[1759231937137,1.60252321,113060.0,113050.0,0.52444559]
[1759231937332,1.60252321,113060.0,113050.0,0.49320669]
[1759231939342,1.60252321,113060.0,113050.0,0.16364559]
[1759231939537,1.60252321,113060.0,113050.0,0.49320669]
[1759231939734,2.02049011,113060.0,113050.0,0.16364559]
[1759231939929,1.98129011,113060.0,113050.0,0.14248559]
[1759231940141,1.98129011,113060.0,113050.0,0.14208559]
[1759231940439,1.98129011,113060.0,113050.0,0.14248559]
[1759231941041,1.32216791,113060.0,113050.0,0.14248559]
[1759231941341,1.98129011,113060.0,113050.0,0.14248559]
[1759231941736,1.98129011,113060.0,113050.0,0.0064]
[1759231941737,2.71085121,113060.0,113050.0,0.0064]
[1759231941934,1.60082181,113060.0,113050.0,0.0064]
[1759231942543,2.41242181,113060.0,113050.0,0.0948136]
[1759231943346,2.38069011,113060.0,113050.0,0.0948136]
[1759231943544,1.56909011,113060.0,113050.0,0.0948136]
[1759231943737,1.56909011,113060.0,113050.0,0.1180836]
[1759231943942,2.38081011,113060.0,113050.0,0.1180836]
[1759231944335,2.38081011,113060.0,113050.0,0.0948136]
[1759231944544,2.38077011,113060.0,113050.0,0.0948136]
[1759231945844,2.38093011,113060.0,113050.0,0.0948136]
[1759231947950,0.90996791,113060.0,113050.0,0.0948136]
[1759231948242,2.38097011,113060.0,113050.0,0.0948136]
[1759231948939,2.41270181,113060.0,113050.0,0.0948136]
[1759231949144,2.41270181,113060.0,113050.0,0.0064]
[1759231952340,1.62117011,113060.0,113050.0,0.4476445]
[1759231952544,1.98197011,113060.0,113050.0,0.02967]
[1759231952738,2.71153121,113060.0,113050.0,0.0064]
[1759231952938,2.71153121,113060.0,113050.0,0.006]
[1759231953334,2.71153121,113060.0,113050.0,0.0064]
[1759231953735,0.80829011,113060.0,113050.0,0.1180835]
[1759231953939,1.62081011,113060.0,113050.0,0.1180835]
[1759231958046,1.62081011,113060.0,113050.0,0.1180831]
[1759231958253,1.29143818,113060.0,113050.0,0.0948131]
[1759231958849,2.05223818,113060.0,113050.0,0.0064]
[1759231959052,0.1021287,113030.0,113020.0,0.0884337]
[1759231959352,1.28768108,113030.0,113020.0,0.1117037]
[1759231959746,1.28768108,113030.0,113020.0,0.1121037]
[1759231960552,1.28768108,113030.0,113020.0,0.1131037]
[1759231960955,1.28768108,113030.0,113020.0,0.1287037]
[1759231961350,1.28768108,113030.0,113020.0,0.1291037]
[1759231961758,1.35824407,113030.0,113020.0,0.1291037]
[1759231963657,1.33789196,113030.0,113020.0,0.1291037]
[1759231964050,1.33825196,113030.0,113020.0,0.1291037]
[1759231965651,1.37943977,113030.0,113020.0,0.0174]
[1759231965959,1.74023977,113030.0,113020.0,0.017]
[1759231966162,0.92751977,113030.0,113020.0,0.017]
[1759231966460,1.74083977,113030.0,113020.0,0.0174]
[1759231966853,1.74103977,113030.0,113020.0,0.0174]
[1759231967053,1.74103977,113030.0,113020.0,0.017]
[1759231967362,1.74099977,113030.0,113020.0,0.0174]
[1759231968459,2.14099977,113030.0,113020.0,0.017]
[1759231968658,2.14099977,113030.0,112990.0,0.4621621]
[1759231968659,0.1242908,113000.0,112990.0,0.1096821]
[1759231968858,1.26772107,113000.0,112990.0,0.4704821]
[1759231969057,0.45404107,113000.0,112990.0,0.4704821]
[1759231969260,1.26764107,113000.0,112990.0,0.4708821]
[1759231969560,0.1242908,113000.0,112990.0,0.4708821]
[1759231969761,0.9369308,113000.0,112990.0,0.4708821]
[1759231970562,0.9459308,113000.0,112990.0,0.4708821]
[1759231970762,0.9369308,113000.0,112990.0,0.4708821]
[1759231971662,0.9389308,113000.0,112990.0,0.4708821]
[1759231972160,0.94785604,113000.0,112990.0,0.4708821]
[1759231973067,1.27760631,113000.0,112990.0,0.4708821]
[1759231973450,1.27760631,113000.0,112990.0,0.4704821]
[1759231973656,1.27760631,113000.0,112990.0,0.4708821]
[1759231974165,1.27760631,113000.0,112990.0,0.1100821]
[1759231974460,0.82476631,113000.0,112990.0,0.02163]
[1759231974662,1.63832631,113000.0,112990.0,0.02123]
[1759231974851,1.63832631,113000.0,112990.0,0.02163]
[1759231975056,1.63832631,113000.0,112990.0,0.0004]
[1759231975255,1.63832631,113000.0,112990.0,0.088859]
[1759231975456,0.82476631,113000.0,112990.0,0.088859]
[1759231975662,1.27740631,113000.0,112990.0,0.110089]
[1759231976663,1.27744631,113000.0,112990.0,0.110089]
[1759231977563,0.46396631,113000.0,112990.0,0.110089]
[1759231977766,1.27732631,113000.0,112990.0,0.110089]
[1759231978263,1.27720631,113000.0,112990.0,0.110089]
[1759231979465,1.27696631,113000.0,112990.0,0.110089]
[1759231980362,0.46396631,113000.0,112990.0,0.110089]
[1759231980665,1.27680631,113000.0,112990.0,0.110089]
[1759231980963,1.27680631,113000.0,112990.0,0.1100892]
[1759231982056,0.94705604,113000.0,112990.0,0.1100892]
[1759231982263,1.27668631,113000.0,112990.0,0.1100892]
[1759231982453,1.27656631,113000.0,112990.0,0.1100892]
[1759231982765,1.29743083,113000.0,112990.0,0.1100887]
[1759231984157,1.65823083,113000.0,112990.0,0.0004]
[1759231984558,1.65823083,113000.0,112980.0,0.01815932]
[1759231984559,0.1242988,112990.0,112980.0,0.01815932]
[1759231984866,0.45404907,112990.0,112980.0,0.10742462]
[1759231986365,0.52907585,112990.0,112980.0,0.10742462]
[1759231986766,1.01352558,112990.0,112980.0,0.12865462]
[1759231986967,1.33727585,112990.0,112980.0,0.13085462]
[1759231987265,1.33727585,112990.0,112980.0,0.13125462]
[1759231988165,1.35787111,112990.0,112980.0,0.13125462]
[1759231988463,1.35791111,112990.0,112980.0,0.13125462]
[1759231988856,0.54367111,112990.0,112980.0,0.49205462]
[1759231989061,1.33715585,112990.0,112980.0,0.49205462]
[1759231989567,1.35775145,112990.0,112980.0,0.49205462]
[1759231989961,0.54367145,112990.0,112980.0,0.49205462]
[1759231990158,1.35771145,112990.0,112980.0,0.49205462]
[1759231990760,1.35751145,112990.0,112980.0,0.49205462]
[1759231992069,0.54367145,112990.0,112980.0,0.49205462]
[1759231992262,0.45521265,112990.0,112980.0,0.50545462]
[1759231992762,1.26901265,112990.0,112980.0,0.50545462]
[1759231993063,0.43461705,112990.0,112980.0,0.50545462]
[1759231993266,0.90568678,112990.0,112980.0,1.23520489]
[1759231993468,1.23543705,112990.0,112980.0,0.90545462]
[1759231994366,0.90568678,112990.0,112980.0,0.90545462]
[1759231994867,0.90556678,112990.0,112980.0,0.90545462]
[1759231996168,0.90556678,112990.0,112980.0,0.95301553]
[1759231997171,0.09180678,112990.0,112980.0,0.95301553]
[1759231997365,0.90544678,112990.0,112980.0,0.95301553]
[1759231998864,0.91878678,112990.0,112980.0,0.95301553]
[1759231999070,1.26918219,112990.0,112980.0,0.89205462]
[1759231999267,1.35764099,112990.0,112980.0,0.49205462]
[1759232000570,1.02789072,112990.0,112980.0,0.49205462]
[1759232000871,1.26918219,112990.0,112980.0,0.49205462]
[1759232001770,1.26918219,112990.0,112980.0,0.50489462]
[1759232002164,1.26918219,112990.0,112980.0,0.49205462]
[1759232008173,1.35764099,112990.0,112980.0,0.49205462]
[1759232009176,1.33699585,112990.0,112980.0,0.53961553]
[1759232011382,0.91878678,112990.0,112980.0,0.53961553]
[1759232011582,1.24853705,112990.0,112980.0,0.53961553]
[1759232013876,1.33699545,112990.0,112980.0,0.13125462]
[1759232014081,1.33699545,112990.0,112980.0,0.17902568]
[1759232014276,1.33567545,112990.0,112980.0,0.13125462]
[1759232014880,0.52335545,112990.0,112980.0,0.17902873]
[1759232015082,1.33583545,112990.0,112980.0,0.17902873]
[1759232015383,1.33583545,112990.0,112980.0,0.13125462]
[1759232017280,0.10514678,112990.0,112980.0,0.13125462]
[1759232017483,1.24701705,112990.0,112980.0,0.14409462]
[1759232017687,0.43489705,112990.0,112980.0,0.14409462]
[1759232017879,1.24701705,112990.0,112980.0,0.14409462]
[1759232018077,0.43489705,112990.0,112980.0,0.14409462]
[1759232018391,1.24733705,112990.0,112980.0,0.14409462]
[1759232018577,0.43489705,112990.0,112980.0,0.14409462]
[1759232018778,1.24733705,112990.0,112980.0,0.14409462]
[1759232019783,1.24733705,112990.0,112980.0,0.50489462]
[1759232020181,1.24765493,112990.0,112980.0,0.83496277]
[1759232020487,1.24765493,112990.0,112980.0,0.89857128]
[1759232020680,0.43521493,112990.0,112980.0,0.89857128]
[1759232020881,1.24765493,112990.0,112980.0,0.89857128]
[1759232021184,1.24737493,112990.0,112980.0,0.89857128]
[1759232023285,1.24737493,112990.0,112980.0,0.83496277]
[1759232024486,1.24737493,112990.0,112980.0,0.82212277]
[1759232024987,1.33583343,112990.0,112980.0,0.82212277]
[1759232025187,1.33583343,112990.0,112980.0,0.49205462]
[1759232026088,1.33583343,112990.0,112980.0,0.55566313]
[1759232027787,1.33583343,112990.0,112980.0,0.49205462]
[1759232028886,1.35651332,112990.0,112980.0,0.49205462]
[1759232029284,1.68658147,112990.0,112980.0,0.1578297]
[1759232029483,1.26785482,112990.0,112980.0,0.1797597]
[1759232029682,0.45589482,112990.0,112980.0,0.13195462]
[1759232029993,1.26785482,112990.0,112980.0,0.49315462]
[1759232030893,0.45589482,112990.0,112980.0,0.49315462]
[1759232031091,1.26809482,112990.0,112980.0,0.49315462]
[1759232031296,0.45589482,112990.0,112980.0,0.49315462]
[1759232031594,1.26809482,112990.0,112980.0,0.49315462]
[1759232032897,1.35655332,112990.0,112980.0,0.49315462]
[1759232033097,1.35647332,112990.0,112980.0,0.49315462]
[1759232033291,0.54435332,112990.0,112980.0,0.49315462]
[1759232033492,1.35627332,112990.0,112980.0,0.49315462]
[1759232034899,1.35627332,112990.0,112980.0,0.54095182]
[1759232036998,0.45589482,112990.0,112980.0,0.54095182]
[1759232037195,1.26741482,112990.0,112980.0,0.54095182]
[1759232037392,1.35587342,112990.0,112980.0,0.54095182]
[1759232038104,1.26741482,112990.0,112980.0,0.54095182]
[1759232038795,1.35587342,112990.0,112980.0,0.54095182]
[1759232041100,1.68594157,112990.0,112980.0,0.15782292]
[1759232041301,2.44674157,112990.0,112980.0,0.06935652]
[1759232041498,2.44674157,112990.0,112980.0,0.06895652]
[1759232041699,2.44674157,112990.0,112980.0,0.06935652]
[1759232042104,2.77680972,112990.0,112980.0,0.02155932]
[1759232042395,2.77680972,112990.0,112970.0,0.1370694]
[1759232042396,0.1237264,112980.0,112970.0,0.1370694]
[1759232042601,1.49541074,112980.0,112970.0,0.1362694]
[1759232043002,1.49541074,112980.0,112970.0,0.0884722]
[1759232043203,1.49541074,112980.0,112970.0,0.0888722]
[1759232043204,1.16544333,112980.0,112970.0,0.0888722]
[1759232043404,1.16544333,112980.0,112970.0,0.0884722]
[1759232043606,1.16544333,112980.0,112970.0,0.0968722]
[1759232043808,1.97640333,112980.0,112970.0,0.1192022]
[1759232044100,1.16544333,112980.0,112970.0,0.1192022]
[1759232044306,1.97636333,112980.0,112970.0,0.1192022]
[1759232044508,1.98136333,112980.0,112970.0,0.1112022]
[1759232044805,1.62056333,112980.0,112970.0,0.1112022]
[1759232046006,1.62056333,112980.0,112970.0,0.0888722]
[1759232046707,0.80964333,112980.0,112970.0,0.1112022]
[1759232047006,1.62064333,112980.0,112970.0,0.1112022]
[1759232047507,1.62064333,112980.0,112970.0,0.0888722]
[1759232047709,1.6206184,112980.0,112970.0,0.1112022]
[1759232048506,1.6206184,112980.0,112970.0,0.0888722]
[1759232048906,0.8096184,112980.0,112970.0,0.0888722]
[1759232049109,1.6203384,112980.0,112970.0,0.0888722]
[1759232050309,1.6203384,112980.0,112970.0,0.1112022]
[1759232050509,0.8096184,112980.0,112970.0,0.1112022]
[1759232050809,1.6199384,112980.0,112970.0,0.1112022]
[1759232051602,0.8096184,112980.0,112970.0,0.1112022]
[1759232051806,1.6198584,112980.0,112970.0,0.1112022]
[1759232054809,1.6198584,112980.0,112970.0,0.0888722]
[1759232055811,1.6196584,112980.0,112970.0,0.0888722]
[1759232056104,1.6196584,112980.0,112970.0,0.1121922]
[1759232056904,0.8096184,112980.0,112970.0,0.1121922]
[1759232057104,1.6192984,112980.0,112970.0,0.1121922]
[1759232058005,0.8096184,112980.0,112970.0,0.1121922]
[1759232058312,1.6192584,112980.0,112970.0,0.4860722]
[1759232059398,1.6192584,112980.0,112970.0,0.4729922]
[1759232059602,0.8096184,112980.0,112970.0,0.4729922]
[1759232059804,0.8096184,112980.0,112970.0,0.81614035]
[1759232059805,0.721152,112980.0,112970.0,0.81614035]
[1759232060000,0.02721074,112980.0,112970.0,1.5940057]
[1759232060200,0.59234074,112980.0,112970.0,1.21614035]
[1759232060400,0.00510074,112980.0,112970.0,1.27974886]
[1759232060804,0.00510074,112980.0,112970.0,1.21614035]
[1759232061102,0.00510074,112980.0,112970.0,1.27974886]
[1759232063316,0.00510074,112980.0,112970.0,1.60981701]
[1759232063613,0.00510074,112980.0,112970.0,1.5462085]
[1759232063812,0.00510074,112980.0,112970.0,2.3579685]
[1759232064311,0.00510074,112980.0,112970.0,2.4215573]
[1759232064513,0.00510074,112980.0,112970.0,1.6097973]
[1759232064811,0.00510074,112980.0,112970.0,2.3578885]
[1759232065000,0.00510074,112980.0,112970.0,1.5462085]
[1759232065314,0.00510074,112980.0,112970.0,2.42146219]
[1759232066509,4e-08,112980.0,112970.0,2.42146219]
[1759232066707,4e-08,112980.0,112970.0,1.60978219]
[1759232066910,4e-08,112980.0,112970.0,2.42150219]
[1759232067311,4e-08,112980.0,112970.0,2.43743914]
[1759232067705,0.06902678,112990.0,112980.0,0.1229663]
[1759232067900,0.36088339,113000.0,112990.0,0.01308]
[1759232068101,0.36088339,113000.0,112990.0,0.86148559]
[1759232069809,0.36888339,113000.0,112990.0,0.53141744]
[1759232070016,0.36888339,113000.0,112990.0,0.86148559]
[1759232070617,0.36088339,113000.0,112990.0,0.86148559]
[1759232070916,0.36188339,113000.0,112990.0,0.86148559]
[1759232071315,0.02289,113000.0,112990.0,0.81382665]
[1759232071518,0.001,113000.0,112990.0,0.86148559]
[1759232071703,0.001,113000.0,112990.0,1.67268559]
[1759232071909,0.02289,113000.0,112990.0,0.86148559]
[1759232072216,0.35295815,113000.0,112990.0,1.67288559]
[1759232073016,0.35295815,113000.0,112990.0,1.67328559]
[1759232073216,0.35295815,113000.0,112990.0,0.86188559]
[1759232073611,0.35295815,113000.0,112990.0,1.62562665]
[1759232073917,0.0318756,113000.0,112990.0,1.62562665]
[1759232074120,0.36194375,113000.0,112990.0,1.62562665]
[1759232076418,0.36194375,113000.0,112990.0,0.81422665]
[1759232076615,0.36194375,113000.0,112990.0,1.62574665]
[1759232077326,0.36194375,113000.0,112990.0,1.62566665]
[1759232078926,0.36194375,113000.0,112990.0,0.81422665]
[1759232079117,0.36194375,113000.0,112990.0,1.62570665]
[1759232079317,0.36194375,113000.0,112990.0,0.81422665]
[1759232079518,0.7934125,113000.0,112990.0,0.1229585]
[1759232079723,0.7934125,113000.0,112990.0,0.1102785]
[1759232080223,0.46334842,113000.0,112990.0,0.1102785]
[1759232080416,0.37489782,113000.0,112990.0,0.1102785]
[1759232081018,0.37489782,113000.0,112990.0,0.1098785]
[1759232081214,0.37489782,113000.0,112990.0,0.1102785]
[1759232081717,0.37489782,113000.0,112990.0,0.4710785]
[1759232082217,0.37489782,113000.0,112990.0,0.4839685]
[1759232085315,0.0099856,113000.0,112990.0,1.21404072]
[1759232085626,0.43646521,113030.0,113020.0,0.1097449]
[1759232085927,0.92629916,113030.0,113020.0,0.1097449]
[1759232086428,1.01472626,113030.0,113020.0,0.1097449]
[1759232086817,1.01472626,113030.0,113020.0,0.1107449]
[1759232086818,0.57856626,113030.0,113020.0,0.1107449]
[1759232087019,1.39088626,113030.0,113020.0,0.1107449]
[1759232087319,1.39971347,113030.0,113020.0,0.1107449]
[1759232087523,1.06964125,113030.0,113020.0,0.1107449]
[1759232087723,0.98121415,113030.0,113020.0,0.1236349]
[1759232087923,1.31128637,113030.0,113020.0,0.1236349]
[1759232088115,1.39971347,113030.0,113020.0,0.1236349]
[1759232089220,1.43144517,113030.0,113020.0,0.1236349]
[1759232089415,0.61912517,113030.0,113020.0,0.1236349]
[1759232089618,1.10105295,113030.0,113020.0,0.1236349]
[1759232089814,1.43112517,113030.0,113020.0,0.1236349]
[1759232090021,1.10105295,113030.0,113020.0,0.1236349]
[1759232090228,1.43112517,113030.0,113020.0,0.1236349]
[1759232092020,1.43112517,113030.0,113020.0,0.1107449]
[1759232092424,1.43112517,113030.0,113020.0,0.110745]
[1759232093024,1.83112517,113030.0,113020.0,0.001]
[1759232093228,2.19192517,113030.0,113020.0,0.001]
[1759232093528,2.19192341,113030.0,113020.0,0.001]
[1759232093726,2.19192341,113030.0,113020.0,0.0014]
[1759232093727,2.23972122,113030.0,113020.0,0.0014]
[1759232095026,2.19192341,113030.0,113020.0,0.0014]
[1759232095326,2.23972122,113030.0,113020.0,0.0014]
[1759232095830,2.20798952,113030.0,113020.0,0.0014]
[1759232096523,2.53806174,113030.0,113020.0,0.0014]
[1759232096727,2.49026393,113030.0,113020.0,0.0014]
[1759232097123,2.49026393,113030.0,113020.0,0.001]
[1759232097324,2.49026393,113030.0,113020.0,0.0014]
[1759232097724,2.16019171,113030.0,113020.0,0.0014]
[1759232098428,2.49026393,113030.0,113020.0,0.0014]
[1759232098833,0.1232029,113010.0,113000.0,0.0008]
[1759232099026,0.1250808,113000.0,112990.0,0.51821457]
[1759232099227,0.45515302,113000.0,112990.0,0.4705632]
[1759232100027,0.02292,113000.0,112990.0,0.4834532]
[1759232100234,1.16603222,113000.0,112990.0,0.4834532]
[1759232100634,0.36099222,113000.0,112990.0,0.4834532]
[1759232101237,1.17387222,113000.0,112990.0,0.4834532]
[1759232101434,0.008,113000.0,112990.0,1.26117679]
[1759232102032,0.7798429,113010.0,113000.0,0.1226508]
[1759232102332,1.13059425,113010.0,113000.0,0.4834508]
[1759232102538,0.46211425,113010.0,113000.0,0.4834508]
[1759232102731,1.18691135,113010.0,113000.0,0.4834508]
[1759232103131,0.37367135,113010.0,113000.0,0.4834508]
[1759232103327,1.20511135,113010.0,113000.0,0.4834508]
[1759232103938,0.87503913,113010.0,113000.0,0.4834508]
[1759232104129,1.20511135,113010.0,113000.0,0.4834508]
[1759232105040,0.39167135,113010.0,113000.0,0.4834508]
[1759232105242,1.20507135,113010.0,113000.0,0.4834508]
[1759232108340,0.87499913,113010.0,113000.0,0.4834508]
[1759232108643,1.20507135,113010.0,113000.0,0.4834508]
[1759232109141,0.39167135,113010.0,113000.0,0.4834508]
[1759232109445,1.20467135,113010.0,113000.0,0.4834508]
[1759232112649,0.39167135,113010.0,113000.0,0.4834508]
[1759232112837,1.20439135,113010.0,113000.0,0.4834508]
[1759232113037,0.06159913,113010.0,113000.0,0.4834508]